fUSD/lending_fUSD_20240531
["ID","MTS","AMOUNT","RATE_DAILY","PERIOD"]
[328295716,1717123927556,-500.0,0.00032889,11]
[328295717,1717123927565,-500.0,0.00032889,11]
[328295718,1717123927574,-500.0,0.00032889,11]
[328295719,1717123927583,-500.0,0.00032889,11]
[328295720,1717123927592,-500.0,0.00032889,11]
[328295721,1717123927602,-500.0,0.00032889,11]
[328295722,1717123927611,-500.0,0.00032889,11]
[328295723,1717123927620,-492.82154472,0.00032889,11]
[328295724,1717123927629,-500.0,0.00032889,11]
[328295725,1717123927638,-500.0,0.00032889,11]
[328295726,1717123927647,-500.0,0.00032889,11]
[328295727,1717123927657,-500.0,0.00032889,11]
[328295728,1717123927666,-500.0,0.00032889,11]
[328295729,1717123927675,-500.0,0.00032889,11]
[328295730,1717123927684,-500.0,0.00032889,11]
[328295731,1717123927693,-500.0,0.00032889,11]
[328295732,1717123927702,-1015.24,0.00032889,11]
[328295733,1717123927711,-1015.24,0.00032889,11]
[328295734,1717123927720,-1015.24,0.00032889,11]
[328295735,1717123927730,-1003.26,0.00032889,11]
[328295736,1717123927741,-500.0,0.00032889,11]
[328295737,1717123927750,-1003.26,0.00032889,11]
[328295738,1717123927760,-1003.26,0.00032889,11]
[328295739,1717123927769,-500.0,0.00032889,11]
[328295740,1717123927779,-500.0,0.00032889,11]
[328295741,1717123927788,-630.27,0.00032889,11]
[328295742,1717123927797,-630.27,0.00032889,11]
[328295743,1717123927806,-630.27,0.00032889,11]
[328295744,1717123927816,-500.0,0.00032889,11]
[328295745,1717123927826,-500.0,0.00032889,11]
[328295746,1717123927835,-500.0,0.00032889,11]
[328295747,1717123927845,-500.0,0.00032889,11]
[328295748,1717123927854,-500.0,0.00032889,11]
[328295749,1717123927863,-418.51,0.00032889,11]
[328295750,1717123927872,-500.0,0.00032889,11]
[328295751,1717123927887,-500.0,0.00032889,11]
[328295752,1717123927896,-500.0,0.00032889,11]
[328295753,1717123927906,-500.0,0.00032889,11]
[328295754,1717123927916,-500.0,0.00032889,11]
[328295755,1717123927926,-500.0,0.00032889,11]
[328295756,1717123927936,-500.0,0.00032889,11]
[328295757,1717123927946,-344.61296144,0.00032889,11]
[328295758,1717123927957,-500.0,0.00032889,11]
[328295759,1717123927966,-500.0,0.00032889,11]
[328295760,1717123927975,-500.0,0.00032889,11]
[328295761,1717123927985,-500.0,0.00032889,11]
[328295762,1717123927994,-500.0,0.00032889,11]
[328295763,1717123928004,-500.0,0.00032889,11]
[328295764,1717123928014,-500.0,0.00032889,11]
[328295765,1717123928023,-500.0,0.00032889,11]
[328295766,1717123928034,-500.0,0.00032889,11]
[328295767,1717123928043,-534.05,0.00032889,11]
[328295768,1717123928053,-500.0,0.00032889,11]
[328295769,1717123928062,-534.05,0.00032889,11]
[328295770,1717123928072,-500.0,0.00032889,11]
[328295771,1717123928081,-534.05,0.00032889,11]
[328295772,1717123928090,-500.0,0.00032889,11]
[328295773,1717123928099,-591.14,0.00032889,11]
[328295774,1717123928108,-188.94923665,0.00032889,11]
[328295775,1717123928117,-500.0,0.00032889,11]
[328295776,1717123928126,-500.0,0.00032889,11]
[328295777,1717123928135,-500.0,0.00032889,11]
[328295778,1717123928144,-528.2,0.00032889,11]
[328295779,1717123928153,-528.2,0.00032889,11]
[328295780,1717123928162,-528.2,0.00032889,11]
[328295781,1717123928171,-697.77,0.00032889,11]
[328295782,1717123928180,-697.77,0.00032889,11]
[328295783,1717123928189,-697.77,0.00032889,11]
[328295784,1717123928198,-500.0,0.00032889,11]
[328295785,1717123928207,-500.0,0.00032889,11]
[328295786,1717123928216,-500.0,0.00032889,11]
[328295787,1717123928226,-814.49,0.00032889,11]
[328295788,1717123928235,-814.49,0.00032889,11]
[328295789,1717123928245,-814.49,0.00032889,11]
[328295790,1717123928254,-500.0,0.00032889,11]
[328295791,1717123928263,-500.0,0.00032889,11]
[328295792,1717123928273,-500.0,0.00032889,11]
[328295793,1717123928282,-500.0,0.00032889,11]
[328295794,1717123928291,-500.0,0.00032889,11]
[328295795,1717123928300,-500.0,0.00032889,11]
[328295796,1717123928309,-775.65,0.00032889,11]
[328295797,1717123928319,-775.65,0.00032889,11]
[328295798,1717123928475,-775.65,0.00032889,11]
[328295799,1717123928496,-500.0,0.00032889,11]
[328295800,1717123928505,-500.0,0.00032889,11]
[328295801,1717123928515,-500.0,0.00032889,11]
[328295802,1717123928524,-500.0,0.00032889,11]
[328295803,1717123928533,-500.0,0.00032889,11]
[328295804,1717123928542,-500.0,0.00032889,11]
[328295805,1717123928551,-500.0,0.00032889,11]
[328295806,1717123928560,-500.0,0.00032889,11]
[328295807,1717123928570,-500.0,0.00032889,11]
[328295808,1717123928580,-500.0,0.00032889,11]
[328295809,1717123928589,-500.0,0.00032889,11]
[328295810,1717123928598,-510.93577859,0.00032889,11]
[328295811,1717123928607,-500.0,0.00032889,11]
[328295812,1717123928616,-500.0,0.00032889,11]
[328295813,1717123928625,-500.0,0.00032889,11]
[328295814,1717123928635,-500.0,0.00032889,11]
[328295815,1717123928644,-500.0,0.00032889,11]
[328295816,1717123928653,-500.0,0.00032889,11]
[328295817,1717123928662,-500.0,0.00032889,11]
[328295818,1717123928672,-155.76785481,0.00032889,11]
[328295819,1717123928681,-536.7,0.00032889,11]
[328295820,1717123928690,-536.7,0.00032889,11]
[328295821,1717123928701,-536.7,0.00032889,11]
[328295822,1717123928710,-500.0,0.00032889,11]
[328295823,1717123928719,-500.0,0.00032889,11]
[328295824,1717123928728,-368.70052618,0.00032889,11]
[328295825,1717123928738,-500.0,0.00032889,11]
[328295826,1717123928747,-500.0,0.00032889,11]
[328295827,1717123928756,-500.0,0.00032889,11]
[328295828,1717123928767,-719.9,0.00032889,11]
[328295829,1717123928776,-719.9,0.00032889,11]
[328295830,1717123928785,-719.9,0.00032889,11]
[328295831,1717123928794,-500.0,0.00032889,11]
[328295832,1717123928803,-500.0,0.00032889,11]
[328295833,1717123928812,-398.71787298,0.00032889,11]
[328295834,1717123931213,-101.28212702,0.00032889,11]
[328295835,1717123931223,-500.0,0.00032889,11]
[328295836,1717123931233,-500.0,0.00032889,11]
[328295837,1717123931241,-343.55275513,0.00032889,11]
[328295838,1717123931260,-273.86724487,0.00032889,11]
[328295839,1717123931277,-617.42,0.00032889,11]
[328295840,1717123931286,-617.42,0.00032889,11]
[328295841,1717123931295,-500.0,0.00032889,11]
[328295842,1717123931305,-500.0,0.00032889,11]
[328295843,1717123931314,-500.0,0.00032889,11]
[328295844,1717123931323,-500.0,0.00032889,11]
[328295845,1717123931333,-500.0,0.00032889,11]
[328295846,1717123931342,-500.0,0.00032889,11]
[328295847,1717123931352,-184.24565263,0.00032889,11]
[328295848,1717123931365,-384.93434737,0.00032889,11]
[328295849,1717123931374,-569.18,0.00032889,11]
[328295850,1717123931384,-429.74227423,0.00032889,11]
[328295851,1717123931395,-139.43772577,0.00032889,11]
[328295852,1717123931405,-691.08,0.00032889,11]
[328295853,1717123931414,-691.08,0.00032889,11]
[328295854,1717123931423,-691.08,0.00032889,11]
[328295855,1717123931432,-500.0,0.00032889,11]
[328295856,1717123931441,-500.0,0.00032889,11]
[328295857,1717123931450,-500.0,0.00032889,11]
[328295858,1717123931459,-501.32,0.00032889,11]
[328295859,1717123931468,-501.32,0.00032889,11]
[328295860,1717123931477,-501.32,0.00032889,11]
[328295861,1717123931487,-577.31,0.00032889,11]
[328295862,1717123931497,-577.31,0.00032889,11]
[328295863,1717123931506,-577.31,0.00032889,11]
[328295864,1717123931515,-500.0,0.00032889,11]
[328295865,1717123931524,-450.17528168,0.00032889,11]
[328295866,1717123931533,-500.0,0.00032889,11]
[328295867,1717123931542,-500.0,0.00032889,11]
[328295868,1717123931551,-500.0,0.00032889,11]
[328295869,1717123931560,-581.93359814,0.00032889,11]
[328295870,1717123931634,-1051.38330393,0.00032876,11]
[328295871,1717123931698,-154.807,0.00029082,2]
[328295872,1717123931707,-150.152,0.00029082,2]
[328295873,1717123931716,-230.79669607,0.00032876,11]
[328295874,1717123931725,-500.0,0.00032876,11]
[328295875,1717123931733,-500.0,0.00032876,11]
[328295876,1717123931744,-1956.61,0.00032876,11]
[328295877,1717123931753,-1282.18,0.00032876,11]
[328295878,1717123931762,-537.46,0.00032876,11]
[328295879,1717123931771,-1183.15,0.00032876,11]
[328295880,1717123931780,-500.0,0.00032876,11]
[328295881,1717123931790,-608.56486016,0.00032876,11]
[328295882,1717123931798,-500.16231551,0.00032876,11]
[328295883,1717123931807,-782.01768449,0.00032876,11]
[328295884,1717123931815,-1956.61,0.00032876,11]
[328295885,1717123931823,-500.0,0.00032876,11]
[328295886,1717123931831,-500.0,0.00032876,11]
[328295887,1717123931838,-500.0,0.00032876,11]
[328295888,1717123931845,-811.19119279,0.00032876,11]
[328295889,1717123931854,-371.95880721,0.00032876,11]
[328295890,1717123931861,-1047.62461553,0.00032876,11]
[328295891,1717123931870,-234.55538447,0.00032876,11]
[328295892,1717123931882,-537.46,0.00032876,11]
[328295893,1717123931889,-1956.61,0.00032876,11]
[328295894,1717123931897,-500.0,0.00032876,11]
[328295895,1717123931904,-500.0,0.00032876,11]
[328295896,1717123931911,-969.26423391,0.00032876,11]
[328295897,1717123931922,-312.91576609,0.00032876,11]
[328295898,1717123931930,-1183.15,0.00032876,11]
[328295899,1717123931938,-500.0,0.00032876,11]
[328295900,1717123931945,-10.63640186,0.00032889,11]
[328295901,1717123931954,-592.57,0.00032889,11]
[328295902,1717123931965,-500.0,0.00032889,11]
[328295903,1717123931975,-500.0,0.00032889,11]
[328295904,1717123931984,-500.0,0.00032889,11]
[328295905,1717123931993,-500.0,0.00032889,11]
[328295906,1717123932003,-104.72783505,0.00032889,11]
[328295907,1717123932015,-395.27216495,0.00032889,11]
[328295908,1717123932024,-294.72783505,0.00032889,11]
[328295909,1717123932036,-205.27216495,0.00032889,11]
[328295910,1717123932046,-500.0,0.00032889,11]
[328295911,1717123932058,-500.0,0.00032889,11]
[328295912,1717123932071,-500.0,0.00032889,11]
[328295913,1717123932080,-500.0,0.00032889,11]
[328295914,1717123932090,-545.40438749,0.00032889,11]
[328295915,1717123932099,-288.62691623,0.00032889,11]
[328295916,1717123932111,-211.37308377,0.00032889,11]
[328295917,1717123932120,-500.0,0.00032889,11]
[328295918,1717123932129,-291.58767325,0.00032889,11]
[328295919,1717123932140,-208.41232675,0.00032889,11]
[328295920,1717123932150,-91.58767325,0.00032889,7]
[328295921,1717123932162,-408.41232675,0.00032889,7]
[328295922,1717123932171,-431.58767326,0.00032889,7]
[328295923,1717123932183,-68.41232674,0.00032889,7]
[328295924,1717123932192,-431.58767326,0.00032889,7]
[328295925,1717123932204,-68.41232674,0.00032889,7]
[328295926,1717123932213,-642.48,0.00032889,11]
[328295927,1717123932222,-101.38767376,0.00032889,11]
[328295928,1717123932233,-541.09232624,0.00032889,11]
[328295929,1717123932243,-236.77796401,0.00032889,11]
[328295930,1717123932255,-405.70203599,0.00032889,11]
[328295931,1717123932264,-500.0,0.00032889,11]
[328295932,1717123932274,-500.0,0.00032889,11]
[328295933,1717123932283,-1.29796401,0.00032889,11]
[328295935,1717123932642,-168.521,0.00021377,2]
[328295936,1717123932651,-168.521,0.00022499,2]
[328295937,1717123932660,-537.46,0.00032876,11]
[328295938,1717123932669,-1956.61,0.00032876,11]
[328295939,1717123932678,-1282.18,0.00032876,11]
[328295940,1717123932687,-500.0,0.00032876,11]
[328295941,1717123932695,-386.708,0.00032876,11]
[328295950,1717124348744,-300.0,0.00035014,120]
[328295951,1717124348774,-300.0,0.00035468,120]
[328295952,1717124348807,-300.0,0.00035923,120]
[328295954,1717124753180,-150.0,0.00019725,2]
[328295955,1717124753237,-164.7,0.00024384,2]
[328295956,1717124753259,-695.07181303,0.00025,2]
[328295957,1717124834113,-376.52426324,0.00019625,2]
[328295961,1717125032264,-496.38783676,0.00019625,2]
[328295962,1717125032274,-354.92818697,0.00025,2]
[328295963,1717125032287,-4204.0,0.000261,3]
[328295964,1717125032296,-1100.0,0.00027,2]
[328295965,1717125032307,-231.31,0.00027729,2]
[328295966,1717125032316,-150.0,0.00028346,2]
[328295967,1717125032326,-499.99,0.00028961,2]
[328295968,1717125032335,-1150.0,0.00029,2]
[328295969,1717125032345,-5000.0,0.00029,7]
[328295970,1717125032354,-165.0,0.00029083,2]
[328295971,1717125032364,-2399.0,0.00029083,2]
[328295972,1717125032374,-218.804,0.00029083,2]
[328295973,1717125032384,-150.0,0.00029083,2]
[328295974,1717125032393,-3157.592,0.00029083,2]
[328295975,1717125032404,-300.0,0.00029487,2]
[328295976,1717125032414,-4161.86594063,0.00029587,2]
[328295977,1717125032423,-288.04,0.00029696,2]
[328295978,1717125032433,-2000.0,0.0002974,3]
[328295979,1717125032442,-250.0,0.00029754,2]
[328295980,1717125032451,-177.39,0.00029809,2]
[328295981,1717125032460,-157.48160742,0.0002987,2]
[328295982,1717125032469,-193.53,0.00029895,2]
[328295983,1717125032479,-4161.86594063,0.00029968,2]
[328295984,1717125032488,-4161.86594063,0.00029968,2]
[328295985,1717125032498,-231.31,0.00029993,2]
[328295986,1717125032507,-200.0,0.0003,2]
[328295987,1717125032517,-5699.77274789,0.0003,2]
[328295988,1717125032526,-250.0,0.00030032,2]
[328295989,1717125032535,-250.0,0.00030046,2]
[328295990,1717125032544,-5141.0,0.00030283,2]
[328295991,1717125032554,-707.47,0.00030284,2]
[328295992,1717125032563,-164.7,0.0003031,2]
[328295993,1717125032572,-1200.0,0.00031,2]
[328295994,1717125032582,-152.0,0.00031563,3]
[328295995,1717125032591,-155.57657283,0.00031737,7]
[328295996,1717125032601,-156.91601449,0.00031748,7]
[328295997,1717125032610,-159.19510307,0.00031901,7]
[328295998,1717125032620,-155.84906222,0.00032085,7]
[328295999,1717125032629,-166.47182447,0.00032237,7]
[328296000,1717125032638,-231.31,0.00032257,2]
[328296001,1717125032647,-871.61,0.00032329,2]
[328296002,1717125032656,-416.48,0.00032329,2]
[328296003,1717125032666,-416.48,0.00032329,2]
[328296004,1717125032675,-871.61,0.00032329,2]
[328296005,1717125032684,-871.61,0.00032329,2]
[328296006,1717125032694,-416.48,0.00032329,2]
[328296007,1717125032703,-871.61,0.00032329,2]
[328296008,1717125032712,-416.48,0.00032329,2]
[328296009,1717125032721,-869.81,0.00032329,2]
[328296010,1717125032731,-416.48,0.00032329,2]
[328296011,1717125032740,-870.87,0.00032329,2]
[328296012,1717125032750,-965.65,0.00032329,2]
[328296013,1717125032759,-428.31,0.00032466,2]
[328296014,1717125032768,-150.68,0.00032466,2]
[328296015,1717125032777,-161.16,0.00032466,2]
[328296016,1717125032786,-160.26,0.00032466,2]
[328296017,1717125032795,-258.61,0.00032466,2]
[328296018,1717125032804,-158.75,0.00032466,2]
[328296019,1717125032813,-150.0,0.00032466,2]
[328296020,1717125032822,-150.0,0.00032466,2]
[328296021,1717125032831,-150.0,0.00032466,2]
[328296022,1717125032840,-154.6,0.00032466,2]
[328296023,1717125032849,-421.7,0.00032466,2]
[328296024,1717125032859,-374.2,0.00032466,2]
[328296025,1717125032868,-150.0,0.00032466,2]
[328296026,1717125032877,-150.0,0.00032466,2]
[328296027,1717125032886,-352.63,0.00032466,2]
[328296028,1717125032895,-150.0,0.00032466,2]
[328296029,1717125032904,-421.7,0.00032466,2]
[328296030,1717125032913,-150.0,0.00032466,2]
[328296031,1717125032922,-163.84,0.00032466,2]
[328296032,1717125032931,-150.0,0.00032466,2]
[328296033,1717125032941,-421.7,0.00032466,2]
[328296034,1717125032950,-150.0,0.00032466,2]
[328296035,1717125032959,-150.0,0.00032466,2]
[328296036,1717125032968,-150.0,0.00032466,2]
[328296037,1717125032978,-163.84,0.00032466,2]
[328296038,1717125032987,-352.63,0.00032466,2]
[328296039,1717125032997,-150.0,0.00032466,2]
[328296040,1717125033006,-150.0,0.00032466,2]
[328296041,1717125033016,-150.0,0.00032466,2]
[328296042,1717125033025,-150.0,0.00032466,2]
[328296043,1717125033035,-150.0,0.00032466,2]
[328296044,1717125033044,-352.63,0.00032466,2]
[328296045,1717125033053,-163.84,0.00032466,2]
[328296046,1717125033063,-592.62,0.00032466,2]
[328296047,1717125033072,-352.63,0.00032466,2]
[328296048,1717125033081,-150.0,0.00032466,2]
[328296049,1717125033090,-150.0,0.00032466,2]
[328296050,1717125033099,-163.84,0.00032466,2]
[328296051,1717125033109,-150.0,0.00032466,2]
[328296052,1717125033118,-163.84,0.00032466,2]
[328296053,1717125033127,-352.63,0.00032466,2]
[328296054,1717125033136,-150.0,0.00032466,2]
[328296055,1717125033146,-150.0,0.00032466,2]
[328296056,1717125033155,-150.0,0.00032466,2]
[328296057,1717125033164,-150.0,0.00032466,2]
[328296058,1717125033174,-150.0,0.00032466,2]
[328296059,1717125033183,-352.63,0.00032466,2]
[328296060,1717125033192,-163.84,0.00032466,2]
[328296061,1717125033204,-352.63,0.00032466,2]
[328296062,1717125033215,-163.84,0.00032466,2]
[328296063,1717125033224,-150.0,0.00032466,2]
[328296064,1717125033235,-1805.29555,0.0003256,2]
[328296065,1717125033244,-350.3271,0.00032576,2]
[328296066,1717125033254,-7168.7184,0.00032576,2]
[328296067,1717125033264,-2500.0,0.00032576,2]
[328296068,1717125033273,-778.4141,0.00032576,2]
[328296069,1717125033282,-188.97938568,0.00032576,10]
[328296070,1717125033293,-94309.7044608,0.00032676,2]
[328296071,1717125033308,-713.48412697,0.00032676,2]
[328296073,1717125038112,-1068.58,0.00030283,2]
[328296074,1717125038122,-3972.15664175,0.00032676,2]
[328296075,1717125038135,-1001.95222594,0.00032676,2]
[328296076,1717125038147,-125601.00728249,0.00032676,2]
[328296078,1717125041012,-283.47181061,0.00032676,2]
[328296085,1717125043078,-460.47858563,0.00032676,2]
[328296088,1717125043453,-18970.94160007,0.00032676,2]
[328296092,1717125046339,-821.46340007,0.00029968,2]
[328296093,1717125046351,-3340.40254056,0.00029968,2]
[328296094,1717125046361,-2891.19481139,0.00032676,2]
[328296095,1717125046565,-626.08111507,0.00032676,2]
[328296175,1717125948138,-155.0,0.00017256,2]
[328296176,1717125948158,-155.0,0.00017256,2]
[328296177,1717125948179,-463.83711279,0.00017257,2]
[328296178,1717125948198,-300.0,0.00019525,2]
[328296179,1717125948219,-115.45661511,0.00024384,2]
[328296180,1717126007114,-43.13338489,0.00024384,2]
[328296181,1717126007135,-107.73843868,0.00024384,2]
[328296186,1717126232304,-300.0,0.00017156,2]
[328296188,1717126232316,-150.0,0.00019725,2]
[328296189,1717126232325,-54.57156132,0.00024384,2]
[328296190,1717126232334,-1616.8060762,0.00024384,2]
[328296191,1717126232346,-284.0527738,0.00024384,2]
[328296192,1717126232355,-151.0,0.00025635,5]
[328296194,1717126232364,-722.0,0.000264,3]
[328296195,1717126232373,-182.58273751,0.000264,2]
[328296196,1717126232385,-317.40726249,0.000264,2]
[328296197,1717126232394,-1085.28,0.000264,2]
[328296198,1717126232404,-151.0,0.00027168,7]
[328296199,1717126232413,-150.0,0.00027602,2]
[328296200,1717126232422,-204.66,0.00027656,2]
[328296201,1717126232431,-415.255222,0.00028059,2]
[328296202,1717126232440,-151.0,0.00028701,7]
[328296203,1717126232449,-1000.0,0.00028866,2]
[328296204,1717126232458,-496.46769191,0.00029,7]
[328296205,1717126232470,-4503.53230809,0.00029,7]
[328296206,1717126232479,-1900.85885,0.00029384,2]
[328296207,1717126232488,-227.93,0.00029491,2]
[328296208,1717126232498,-250.0,0.00029504,2]
[328296209,1717126232507,-328.67884191,0.00029591,3]
[328296210,1717126232519,-1671.32115809,0.00029591,3]
[328296211,1717126232528,-177.2946019,0.00029601,2]
[328296212,1717126232539,-72.7053981,0.00029601,2]
[328296213,1717126232549,-250.0,0.00029662,2]
[328296214,1717126232559,-44.96789431,0.0002992,2]
[328296215,1717126232570,-159.69210569,0.0002992,2]
[328296216,1717126232580,-4093.59524732,0.00029968,2]
[328296217,1717126232627,-706.0,0.000279,5]
[328296218,1717126232637,-68.27069331,0.00029968,2]
[328296219,1717126232646,-4121.33939548,0.0003,2]
[328296220,1717126232658,-453.51,0.0003,2]
[328296221,1717126232670,-1124.92335241,0.0003,2]
[328296222,1717126232679,-717.1,0.00030143,2]
[328296223,1717126232689,-151.0,0.00030233,7]
[328296224,1717126232699,-321.0,0.00031,8]
[328296225,1717126232708,-151.0,0.00031766,7]
[328296226,1717126232718,-158.03258899,0.00031998,7]
[328296227,1717126232727,-155.38603037,0.00032,4]
[328296228,1717126232736,-1845.15,0.00032,2]
[328296229,1717126232745,-416.3965384,0.00032054,9]
[328296230,1717126232757,-144.6034616,0.00032054,9]
[328296231,1717126232767,-204.66,0.00032184,2]
[328296232,1717126232776,-159.19510307,0.00032399,7]
[328296233,1717126232785,-1000.0,0.00032476,2]
[328296234,1717126232794,-221.2802,0.00032476,2]
[328296235,1717126232804,-167.15627379,0.00032476,10]
[328296236,1717126232813,-188.97938568,0.00032476,10]
[328296237,1717126232822,-888.01279906,0.00032476,2]
[328296238,1717126232832,-180.0,0.00032494,2]
[328296239,1717126232842,-327.05,0.00032566,10]
[328296240,1717126232854,-39253.4903,0.00032576,2]
[328296241,1717126232863,-500.0,0.00032576,2]
[328296242,1717126232873,-36630.8146831,0.00032576,2]
[328296243,1717126232885,-43770.41248337,0.00032576,2]
[328296244,1717126232896,-5151.15748693,0.00032576,2]
[328296245,1717126232908,-514.69593955,0.00032576,2]
[328296246,1717126232919,-608.79,0.00032576,2]
[328296247,1717126232930,-361.15,0.00032576,2]
[328296249,1717126238261,-157962.97940705,0.00032576,2]
[328296253,1717126238270,-26207.6602,0.00032576,2]
[328296258,1717126238280,-167.15627377,0.00032579,10]
[328296263,1717126238289,-888.01279905,0.00032579,2]
[328296266,1717126238299,-500.0,0.00032659,3]
[328296270,1717126238309,-500.0,0.00032668,3]
[328296273,1717126238318,-150.0,0.0003267,4]
[328296275,1717126238328,-3219.27596702,0.00032676,2]
[328296277,1717126238337,-155.0,0.00032676,2]
[328296279,1717126238346,-200.0,0.00032676,2]
[328296281,1717126238356,-326.24922177,0.00032676,4]
[328296283,1717126238365,-500.0,0.00032676,2]
[328296285,1717126238375,-200.0,0.00032676,2]
[328296287,1717126238384,-500.0,0.00032677,3]
[328296289,1717126238393,-167.15627377,0.00032683,10]
[328296291,1717126238402,-500.0,0.00032686,3]
[328296293,1717126238412,-500.0,0.00032694,3]
[328296294,1717126238421,-500.0,0.00032703,3]
[328296296,1717126238430,-500.0,0.00032712,3]
[328296298,1717126238440,-500.0,0.00032721,3]
[328296300,1717126238449,-500.0,0.0003273,3]
[328296302,1717126238458,-500.0,0.00032738,3]
[328296304,1717126238467,-500.0,0.00032747,3]
[328296306,1717126238477,-500.0,0.00032756,3]
[328296308,1717126238486,-155.35836119,0.00032758,7]
[328296310,1717126238496,-500.0,0.00032765,3]
[328296312,1717126238505,-500.0,0.00032774,3]
[328296314,1717126238514,-1389.31316614,0.00032776,4]
[328296316,1717126238578,-902.63081299,0.00032776,4]
[328296318,1717126238590,-1989.47898931,0.00032776,4]
[328296320,1717126238599,-258.79435456,0.00032776,2]
[328296321,1717126238608,-191.32028723,0.00032776,2]
[328296322,1717126238618,-385.41340038,0.00032776,2]
[328296323,1717126238627,-198.93991769,0.00032782,3]
[328296326,1717126241605,-888.01279905,0.00032683,2]
[328296327,1717126241615,-301.06008231,0.00032782,3]
[328296328,1717126241626,-167.15627377,0.00032786,10]
[328296329,1717126241636,-1380.96350454,0.0003279,2]
[328296330,1717126241646,-577.40099433,0.0003279,2]
[328296331,1717126241656,-500.0,0.00032791,3]
[328296332,1717126241665,-339.90854787,0.000328,3]
[328296333,1717126241944,-160.09145213,0.000328,3]
[328296334,1717126241954,-1009.48,0.000328,2]
[328296335,1717126241964,-500.0,0.00032809,3]
[328296336,1717126241974,-208.41072931,0.00032815,4]
[328296337,1717126241986,-1122.1765279,0.00032815,4]
[328296338,1717126241998,-376.80350691,0.00032815,4]
[328296339,1717126243299,-1000.94430857,0.00032815,4]
[328296340,1717126243609,-1573.08789569,0.00032815,4]
[328296341,1717126243619,-500.0,0.00032818,3]
[328296342,1717126243629,-500.0,0.00032826,3]
[328296343,1717126243640,-500.0,0.00032835,3]
[328296344,1717126243650,-158.03258899,0.00032841,7]
[328296345,1717126243660,-216.69218608,0.00032844,3]
[328296346,1717126244062,-283.30781392,0.00032844,3]
[328296347,1717126244072,-500.0,0.00032853,3]
[328296348,1717126244084,-2750.0481531,0.00032853,4]
[328296357,1717126246641,-888.01279905,0.00032786,2]
[328296358,1717126246652,-1531.37481528,0.00032853,4]
[328296359,1717126246664,-500.0,0.00032862,3]
[328296360,1717126246675,-188.47964542,0.00032866,2]
[328296361,1717126246686,-500.0,0.0003287,3]
[328296362,1717126246697,-522.54033427,0.00032871,2]
[328296363,1717126246708,-363.7561528,0.00032874,10]
[328296364,1717126246720,-340.16655421,0.00032874,4]
[328296365,1717126246730,-162.00607745,0.00032874,4]
[328296366,1717126246741,-177.42976909,0.00032874,4]
[328296367,1717126246751,-376.46064595,0.00032874,4]
[328296368,1717126246762,-1014.08508522,0.00032875,2]
[328296369,1717126246772,-6780.17431579,0.00032875,4]
[328296370,1717126246783,-5192.79147835,0.00032875,4]
[328296371,1717126246794,-500.0,0.00032876,11]
[328296372,1717126246804,-500.0,0.00032876,11]
[328296373,1717126246815,-500.0,0.00032876,11]
[328296374,1717126246826,-500.0,0.00032876,2]
[328296375,1717126246836,-500.0,0.00032876,2]
[328296376,1717126246846,-451.07715895,0.00032876,2]
[328296377,1717126246858,-500.0,0.00032876,11]
[328296378,1717126246869,-500.0,0.00032876,11]